Cogmind - Beta 11.2 @@@ ROGUE MODE // 2023.01.18 @ 19:05:40 Player: Kersh Result: Destroyed by Y-45 Defender with Heavy Assault Rifle Performance ------------- Evolutions (2) 1000 Regions Visited (4) 800 Robots Destroyed (13) 65 Value Destroyed (238) 238 Prototype IDs (1) 20 Alien Tech Used (0) 0 Bonus (0) 0 TOTAL SCORE: 2123 Bonus ------- None Cogmind --------- Core Integrity 0/550 Matter 15/300 Energy 100/100 System Corruption 1% Temperature Cool (9) Movement Core (100) Ox1 Location -8/Storage Parts ------- > --- POWER (1) -------- (None) > --- PROPULSION (4) --- (None) > --- UTILITY (3) ------ Drone Bay (2/2) > --- WEAPON (3) ------- (None) > --- INVENTORY (5) ---- Ion Engine Cesium-ion Thruster ECM Suite High-powered Shotgun Peak State ------------ > --- POWER ------------ Deuterium Engine > --- PROPULSION ------- Flight Unit Flight Unit Cesium-ion Thruster Cesium-ion Thruster > --- UTILITY ---------- Small Storage Unit Weight Redist. System > --- WEAPON ----------- High-powered Shotgun High-powered Shotgun High-powered Shotgun > --- INVENTORY -------- Ion Engine Light Ion Engine Cesium-ion Thruster Cesium-ion Thruster ECM Suite Advanced EMP Blaster Hammer [Rating: 24] Favorites ----------- Power Ion Engine Engine Ion Engine Propulsion Flight Unit Leg Aluminum Leg Flight Unit Flight Unit Utility Small Storage Unit Device Weight Redist. System Storage Small Storage Unit Weapon Small Laser Energy Gun Small Laser Ballistic Gun High-powered Shotgun Launcher Grenade Launcher Impact Weapon Hammer Build | -11 -10 -9 -8 -8 ------- Run | Scr Mat Mat Mat Sto Slots Evolved 4 | . . 2 2 . Power . | . . . . . Propulsion 2 | . . 2 . . Utility 1 | . . . 1 . Weapon 1 | . . . 1 . Parts Attached 37 | 6 5 15 10 1 Power 5 | 1 1 1 2 . Engine 5 | 1 1 1 2 . Core . | . . . . . Reactor . | . . . . . Propulsion 10 | 2 2 4 2 . Treads . | . . . . . Leg 2 | 2 . . . . Wheel . | . . . . . Hover . | . . . . . Flight 8 | . 2 4 2 . Utility 5 | 1 1 2 . 1 Device 3 | . 1 1 . 1 Storage 2 | 1 . 1 . . Processor . | . . . . . Hackware . | . . . . . Protection . | . . . . . Artifact . | . . . . . Weapon 17 | 2 1 8 6 . Energy Gun 2 | 2 . . . . Energy Cannon . | . . . . . Ballistic Gun 8 | . . 5 3 . Ballistic Cannon . | . . . . . Launcher 4 | . . 2 2 . Special Weapon . | . . . . . Impact Weapon 3 | . 1 1 1 . Slashing Weapon . | . . . . . Piercing Weapon . | . . . . . Special Melee Weapon . | . . . . . Unidentified Prototypes 1 | . . . 1 . Parts Lost 13 | . . 1 12 . Power 2 | . . . 2 . Propulsion 6 | . . 1 5 . Utility 1 | . . . 1 . Weapon 4 | . . . 4 . Highest Loss Streak 12 | . . 1 12 . To Critical Strikes . | . . . . . Average Slot Usage (%) 66 | . 90 85 56 3 Engine 8 | . 14 11 5 . Leg 7 | . 23 . . . Flight 16 | . 3 37 21 . Device 7 | . 8 8 6 3 Storage 8 | . 13 10 6 . Energy Gun 7 | . 25 . . . Ballistic Gun 5 | . . 8 12 . Impact Weapon 2 | . . 6 2 . Naked Turns 101 | . . . 46 55 Heaviest Build 23 | 12 13 16 23 6 Greatest Support 25 | 20 20 22 25 3 Greatest Overweight (x) 1 | . 1 1 1 1 Average Overweight (x) . | . . . . . Largest Inventory Capacity 8 | 8 8 8 8 5 Average Capacity 7 | 6 7 7 7 5 Most Carried 8 | 3 8 8 8 4 Average Carried 4 | . 4 6 5 4 Final Capacity 8 | 8 5 8 5 5 Final Carried 7 | 1 5 7 4 4 Class Distribution -------------------- 59% | Mutant 23% | Scavenger-Mutant 12% | Gunner 5% | Sprinter Dominant Class ---------------- Mutant | -10/Materials Scavenger-Mutant | -9/Materials Mutant | -8/Materials Mutant | -8/Storage Resources | -11 -10 -9 -8 -8 ----------- Run | Scr Mat Mat Mat Sto Matter Collected 293 | 167 86 40 . . Remotely . | . . . . . Salvage Created 230 | . 86 52 92 . Parts 19 | . 9 8 2 . Haulers Intercepted . | . . . . . Recyclers Shooed . | . . . . . Parts Field Recycled . | . . . . . Retrieved Matter . | . . . . . Parts Self-Destructed . | . . . . . Prevented . | . . . . . Kills | -11 -10 -9 -8 -8 ------- Run | Scr Mat Mat Mat Sto Combat Hostiles Destroyed 13 | . 6 5 2 . Melee 2 | . . 1 1 . Guns 7 | . 6 1 . . AOE 4 | . . 3 1 . Classes Destroyed 2 | . 1 1 . . Swarmer 10 | . 6 4 . . Grunt 3 | . . 1 2 . Best Kill Streak 6 | . 6 4 1 . Combat Bots Only 6 | . 6 4 1 . Max Kills in Single Turn 2 | . 2 2 1 . Gunslinging 1 | . 1 . . . Exploded 2 | . . 2 1 . Melee 1 | . . 1 1 . Uniques/NPCs Destroyed . | . . . . . Combat | -11 -10 -9 -8 -8 -------- Run | Scr Mat Mat Mat Sto Damage Taken 1878 | . 181 222 1241 234 Core 741 | . 39 140 415 147 Absorbed by Shields . | . . . . . Core Remaining (%) 83 | 100 84 65 . . Volleys Fired 17 | . 9 6 2 . Largest 3 | . 2 2 3 . Hottest 80 | . 80 46 75 . Shots Fired 30 | . 18 8 4 . Gun 25 | . 18 4 3 . Cannon . | . . . . . Launcher 5 | . . 4 1 . Special . | . . . . . Kinetic 7 | . . 4 3 . Thermal 18 | . 18 . . . Explosive 4 | . . 4 . . Electromagnetic 1 | . . . 1 . Robot Hit Streak 8 | . 3 8 1 . Robot Miss Streak 3 | . 2 2 3 . Penetration Max . | . . . . . Secondary Targets 2 | . 2 . . . Max Gunslinging Chain 1 | . 1 . . . Shots Hit Robots 23 | . 9 6 8 . Core Hits 19 | . 6 10 3 . Critical Kills 1 | . . 1 . . Critical Parts Destroyed 1 | . . . 1 . Critical Strikes 2 | . . 1 1 . Smash 2 | . . 1 1 . Melee Attacks 19 | . . 4 15 . Impact 19 | . . 4 15 . Slashing . | . . . . . Piercing . | . . . . . Sneak Attacks . | . . . . . Combat Hostiles . | . . . . . Follow-up Attacks . | . . . . . Damage Inflicted 757 | . 112 403 242 . Guns 181 | . 112 51 18 . Cannons . | . . . . . Explosions 402 | . . 328 74 . Melee 174 | . . 24 150 . Ramming . | . . . . . Kinetic 69 | . . 51 18 . Thermal 112 | . 112 . . . Explosive 328 | . . 328 . . Electromagnetic 74 | . . . 74 . Impact 174 | . . 24 150 . Slashing . | . . . . . Piercing . | . . . . . Highest Corruption 1 | . . . . 1 Average Corruption 1 | . . . . 1 Corruption Purged . | . . . . . Corruption Blocked . | . . . . . Effects 1 | . . . . 1 Message Errors 1 | . . . . 1 Overload Shots . | . . . . . Overflow Damage 22 | . . 6 16 . Projectiles . | . . . . . Explosions 6 | . . 6 . . Melee 16 | . . . 16 . Knockbacks 1 | . . . 1 . Impact 1 | . . . 1 . Kinetic . | . . . . . Secondary . | . . . . . Self-Inflicted Damage 62 | . . 62 . . Shots 2 | . . 2 . . Rammed . | . . . . . Targets Rammed . | . . . . . Kicked . | . . . . . Crushed . | . . . . . Highest Temperature 126 | . 126 1 27 . Average Temperature 51 | . 59 1 11 . Received Heat Transfer 384 | . . 15 324 45 Siege Activations . | . . . . . Robots Corrupted . | . . . . . Combat Hostiles . | . . . . . Parts Fried . | . . . . . Impact Corruptions 1 | . . . 1 . Robots Melted . | . . . . . Combat Hostiles . | . . . . . Parts Melted . | . . . . . Heat Transferred 250 | . 250 . . . Parts Sabotaged . | . . . . . Parts Stolen . | . . . . . Parts Stripped . | . . . . . Power Chain Reactions . | . . . . . Missiles Intercepted . | . . . . . Alert | -11 -10 -9 -8 -8 ------- Run | Scr Mat Mat Mat Sto Peak Influence 349 | . 206 349 216 119 Initial 146 | . . 86 146 89 Average 124 | . 69 218 175 107 Maximum Alert Level 1 | . 1 1 1 . Low Security (%) 72 | 100 74 34 73 100 Level 1 27 | . 25 65 26 . Level 2 . | . . . . . Level 3 . | . . . . . Level 4 . | . . . . . Level 5 . | . . . . . High Security . | . . . . . Max Security . | . . . . . Squads Dispatched 4 | . . 1 2 1 Investigation 2 | . . . 2 . Extermination . | . . . . . Reinforcement 2 | . . 1 . 1 Assault . | . . . . . Garrison . | . . . . . Intercept . | . . . . . Searches Triggered . | . . . . . Construction Impeded 1 | . . 1 . . Haulers Reinforced . | . . . . . Active Scanning Responses . | . . . . . Cargo Convoy Interrupts . | . . . . . Stealth | -11 -10 -9 -8 -8 --------- Run | Scr Mat Mat Mat Sto Distress Signals 4 | . 3 . . 1 Communications Jammed . | . . . . . Distress Signals . | . . . . . Times Spotted 45 | . 12 9 18 6 Peak Tracking Total 15 | . 6 5 15 7 Tactical Retreats 4 | . 1 . 3 . Traps | -11 -10 -9 -8 -8 ------- Run | Scr Mat Mat Mat Sto Traps Triggered 2 | . . . 1 1 Indirectly . | . . . . . Trap Hack Attempts . | . . . . . Triggered . | . . . . . Disarmed . | . . . . . Reprogrammed . | . . . . . Reused . | . . . . . Traps Extracted . | . . . . . Installed . | . . . . . Triggered . | . . . . . Machines | -11 -10 -9 -8 -8 ---------- Run | Scr Mat Mat Mat Sto Machines Disabled 1 | . . 1 . . Max in Single Turn 1 | . . 1 . . Machines Sabotaged . | . . . . . Garrisons Compromised . | . . . . . Overloaded Fab Kills . | . . . . . Hacking | -11 -10 -9 -8 -8 --------- Run | Scr Mat Mat Mat Sto Machines Accessed 4 | . 1 . 2 1 Terminals 4 | . 1 . 2 1 Fabricators . | . . . . . Repair Stations . | . . . . . Recycling Units . | . . . . . Scanalyzers . | . . . . . Garrison Access . | . . . . . Total Hacks 10 | . 2 . 7 1 Successful 5 | . 1 . 3 1 Failed 5 | . 1 . 4 . Catastrophic 1 | . . . 1 . Database Lockouts . | . . . . . Manual 7 | . 2 . 5 . Terminals 10 | . 2 . 7 1 Fabricators . | . . . . . Repair Stations . | . . . . . Recycling Units . | . . . . . Scanalyzers . | . . . . . Garrison Access . | . . . . . Terminal Hacks 5 | . 1 . 3 1 Robot Analysis 1 | . 1 . . . Open Door 1 | . . . . 1 Level Access Points 1 | . . . 1 . Terminal Index 1 | . . . 1 . Locate Traps 1 | . . . 1 . Fabricator Hacks . | . . . . . Repair Station Hacks . | . . . . . Recycling Unit Hacks . | . . . . . Scanalyzer . | . . . . . Garrison Access Hacks . | . . . . . Unauthorized Hacks . | . . . . . Terminals . | . . . . . Fabricators . | . . . . . Repair Stations . | . . . . . Recycling Units . | . . . . . Scanalyzers . | . . . . . Garrison Access . | . . . . . Data Cores Recovered . | . . . . . Used . | . . . . . Hacking Detections 4 | . 1 . 2 1 Full Trace Events 1 | . . . 1 . Feedback Events . | . . . . . Feedback Blocked . | . . . . . Robot Schematics Acquired . | . . . . . Robots Built . | . . . . . Authchips . | . . . . . Time . | . . . . . Total Robot Build Rating . | . . . . . Part Schematics Acquired . | . . . . . Parts Built . | . . . . . Authchips . | . . . . . Time . | . . . . . Total Part Build Rating . | . . . . . Parts Repaired . | . . . . . Time . | . . . . . Parts Recycled . | . . . . . Recycled Matter . | . . . . . Retrieved Matter . | . . . . . Retrieved Components . | . . . . . Parts Scanalyzed . | . . . . . Part Schematics Acquired . | . . . . . Parts Damaged . | . . . . . Bothacking | -11 -10 -9 -8 -8 ------------ Run | Scr Mat Mat Mat Sto Used RIF Installer . | . . . . . Robots Hacked . | . . . . . Non-combat . | . . . . . Combat . | . . . . . Robot Hacks Applied . | . . . . . Relay Couplers Released . | . . . . . Fabnet Peak Effective % . | . . . . . Robots Rewired . | . . . . . Allies Hacked . | . . . . . Hacks Repelled . | . . . . . Allies | -11 -10 -9 -8 -8 -------- Run | Scr Mat Mat Mat Sto Total Allies . | . . . . . Largest Group . | . . . . . Highest-Rated Group . | . . . . . Highest-Rated Ally . | . . . . . Total Orders 1 | . . . . 1 EXPLORE 1 | . . . . 1 Ally Attacks . | . . . . . Total Damage . | . . . . . Kills . | . . . . . Allies Corrupted . | . . . . . Allies Melted . | . . . . . Intel | -11 -10 -9 -8 -8 ------- Run | Scr Mat Mat Mat Sto Robot Analysis Total 1 | . 1 . . . Derelict Logs Recovered . | . . . . . Drone Launches 3 | . . . . 3 Drone Recoveries 3 | . . . . 3 Exploration | -11 -10 -9 -8 -8 ------------- Run | Scr Mat Mat Mat Sto Turns Passed 690 | 84 193 152 167 94 Spaces Moved 775 | 64 160 237 194 120 Core 213 | 5 . . 88 120 Treads . | . . . . . Legs 165 | 59 106 . . . Wheels . | . . . . . Hover . | . . . . . Flight 397 | . 54 237 106 . Fastest Speed 27 | 50 37 31 27 50 Average Speed 58 | 114 92 35 42 54 Slowest Speed 120 | 120 120 117 120 100 Overloaded Moves . | . . . . . Propulsion Burnouts . | . . . . . Robots Hopped 1 | . . 1 . . Cave-ins Triggered . | . . . . . Exploration Rate (%) 24 | 3 26 31 28 35 Regions Visited 4 Branch Regions 1 Pre-discovered Areas . | . . . . . Known Exits Taken . | . . . . . Unknown Exits Taken 4 | 1 1 1 1 . Scrap Searched . | . . . . . Spaces Dug 4 | . . 1 3 . Terrain Destroyed 22 | . . 19 3 . Melee 4 | . . 1 3 . Projectile . | . . . . . AOE 18 | . . 18 . . Terrain Rammed . | . . . . . Walls Destroyed . | . . . . . Machines Disabled . | . . . . . Actions | -11 -10 -9 -8 -8 --------- Run | Scr Mat Mat Mat Sto Total 945 | 72 189 290 246 148 Wait 56 | . 1 5 23 27 Move 769 | 63 159 234 193 120 Hop 1 | . . 1 . . Pick Up 22 | 3 6 11 2 . Fast Attach 15 | 4 1 8 1 1 Attach 13 | 2 3 4 4 . Detach 6 | . 3 3 . . Swap 9 | . 1 3 5 . Drop 18 | . 6 11 1 . Fire 17 | . 9 6 2 . Melee 19 | . . 4 15 . Ram . | . . . . . Kick . | . . . . . Crush . | . . . . . Escape Stasis . | . . . . . Rewire . | . . . . . Trap . | . . . . . Miscellaneous . | . . . . . Route ------- -11/Scrapyard -10/Materials -9/Materials -8/Materials (discovered 4 exits: Fac x3 / *Sto) -8/Storage History --------- Turn | Location | Event 5 | -11/Scrapyard | Discovered new exit (range 15) 85 | -11/Scrapyard | Entered Materials 275 | -10/Materials | Discovered new exit (range 9) 278 | -10/Materials | Entered another Materials area 278 | -9/Materials | Evolved 2 slots: Propulsion x2 401 | -9/Materials | Discovered new exit (range 16) 430 | -9/Materials | Entered another Materials area 430 | -8/Materials | Evolved 2 slots: Utility x1, Weapon x1 456 | -8/Materials | Identified exit to Factory 551 | -8/Materials | Released all parts (2) 559 | -8/Materials | Core integrity fell below 50% 568 | -8/Materials | Discovered new exit (range 15) 580 | -8/Materials | Lost 12 parts (2p5n1u4w) 597 | -8/Materials | Entered Storage 605 | -8/Storage | Core integrity fell below 20% 691 | -8/Storage | Destroyed by Y-45 Defender with Heavy Assault Rifle Last Messages --------------- A bubble of electromagnetic force engulfs the area. EMP Trap short circuited. A bubble of electromagnetic force engulfs the area. EMP Trap short circuited. A bubble of electromagnetic force engulfs the area. K-01 Serf collects debris. E2YP|HQBKEDGP=I4JKFM30ZR#RO1|VAYOMJGM>Open(Door) Sealed Heavy Doors opened. Acquired Drone Bay. Drone released from Drone Bay. Drone retrieved by Drone Bay. K-01 Serf destroyed. Drone released from Drone Bay. W-25 Informer sends out distress signal. Drone retrieved by Drone Bay. ALERT: Hostiles spotted, dispatching reinforcements to Terminal S012. Map ----- +----------------------------------------------------+ | ???????????????## ##?????????????????????? | | ???????????????# ! ??????????????????????? | | ??????????????? % ??????????????????????? | | ???????????????? = ???????????????????????? | | ???????????????? ???????????????????????? | | ????????????????# #???????????????????????? | | ????????????????# #???????????????????????? | | ????????????????# #???????????????????????? | | ?????????#????###+######??????????????????? | | ?????????# ??# #??????????????????? | | ?????????# T # """" #????????????????### | | ?????????# "" + "??"" #????????????????# | | ?????????# # "???"" #????????????????# | | ?????????###??# ""???" #????????????????# | | ??????????????# ""??" #????????????????# | | ??????????????# """" ######???????????# | | ??????????????# ##! !#???????????## | | ??????????????# ##! !#????????????# | | ??????????????#/#########! !#????????????# | | ???????????#+## #?#####?#! #????????????# | | ???????????# #?#"""#### ##????????????# | | ???????????# #?#"G"##T #????????????# | | ???????????# ###"g"####+############### | | ???????????# w g Y | | ???????????+ ug Y | | ???????????# a@ u | | ???????????# ############################ | | ???????????# ???????????????????????????? | | ???????????+ ???????????????????????????? | | ???????????####???????????????????????????? | | ??????????????????????????????????????????? | | ??????????????????????????????????????????? | | ??????????????????????????????????????????? | | ??????????????????????????????????????????? | | ??????????????????????????????????????????? | | ??????????????????????????????????????????? | | ??????????????????????????????????????????? | | ??????????????????????????????????????????? | | ??????????????????????????????????????????? | | ??????????????????????????????????????????? | | ??????????????????????????????????????????? | | ??????????????????????????????????????????? | | ??????????????????????????????????????????? | | ??????????????????????????????????????????? | | ??????????????????????????????????????????? | | ??????????????????????????????????????????? | | ??????????????????????????????????????????? | | ??????????????????????????????????????????? | | ??????????????????????????????????????????? | | | +----------------------------------------------------+ Best States ------------- Heat Dissipation 31 Energy Generation 14 Energy Capacity 275 Matter Stores 273 Matter Capacity 300 Sight Range 16 Terrain Scan Density 10 Additional Mass Support 6 Evasion (%) 64 Item Schematics ----------------- None Robot Schematics ------------------ None Fabricated ------------ Nothing Alien Tech Used ----------------- None Achievements -------------- None Challenges ------------ None Game ------ Seed AssaultPoweredKit Manual? 0 Play Time 00:19:08 Cumulative 8.7 hours Start 2023.01.18 @ 18:47:25 End 2023.01.18 @ 19:05:40 Sessions 1 Manual Loads 0 Difficulty Rogue Special Mode None Game No. 13 Rogue 13 Adventurer 0 Explorer 0 Win Type - Total 0 Types 0/0/0/0/0/0/0/0/0 Lore% 17 Gallery% 16 Achievement% 13 Wizard Run 0 Options --------- ASCII 1 Keyboard 0 Movement Mouse Keybinds 0 Fullscreen 1 Font 18/Terminus Map View 76x50 Tactical HUD 0 Map Filters NONE Filters NONE Steam 1 RUN: 70b6b644-551d-4d6f-a12d-30d90d07ab3e